Workbook

Sheet 計画資料
B2: ■検討対象
C4: 項目 | D4: 値 | E4: 備考
C5: 面的利用/個別利用 | D5: 面的利用 | E5: 選択してください。
C6: 面的利用建物数 | E6: 選択してください。
C7: 再生可能エネルギーの種類 | D7: 太陽光
C8: 熱の利用用途 | E8: 選択してください。
B11: ■エネルギー供給設備 | M11: 【面的利用】エネルギー利用設備を置く建物
C13: ・太陽光パネルの設置面積の入力 | N13: ・建物1 施設情報
C14: 設置面積の設定方法 | E14: 選択してください。 | K14: 供給先までの距離 | N14: 現状の電気/燃料使用量の有無
C15: 太陽光パネルの設置面積 | E15: ㎡ | L15: m
N16: 項目 | O16: 値 | P16: 単位
C17: ・施設情報(太陽光パネルの設置面積を自動計算する場合は施設情報を入力してください。） | N17: 延床面積 | P17: ㎡
C18: 項目 | D18: 値 | E18: 単位 | N18: 建物用途 | P18: 選択してください。
C19: 敷地面積 | E19: ㎡ | F19: ※空き敷地にパネルを設置しない場合は「０」としてください。
C20: 延床面積 | E20: ㎡ | F20: ※敷地内に建物が有る場合は入力してください。 | N20: 項目 | O20: 料金 | P20: 単位 | Q20: 使用量 | R20: 単位
C21: 建築面積 | E21: ㎡ | F21: ※敷地内に建物が有る場合は入力してください。 | N21: 電気 | P21: 円/年 | R21: kWh/年
C22: 建物用途 | E22: 選択してください。 | F22: ※敷地内に建物が有る場合は入力してください。 | N22: ※燃料種別を選択してください。 | P22: 円/年 | R22: =VLOOKUP(N22,エネルギー単価!$G$6:$M$11,7,FALSE) -> 
C23: 設置面積（自動計算） | D23: =エネルギー計算_太陽光!E13 -> 0 | E23: ㎡
C26: ・電気/熱 売値 | N26: ・建物2 施設情報
C27: 燃料の種類 | D27: 値 | E27: 単位 | K27: 供給先までの距離 | N27: 現状の電気/燃料使用量の有無
C28: 電気売価 | E28: 円/kWh | L28: m
C29: 熱売価 | E29: 円/MJ | N29: 項目 | O29: 値 | P29: 単位
N30: 延床面積 | P30: ㎡
N31: 建物用途 | P31: 選択してください。
C33: 供給先までの距離 | N33: 項目 | O33: 料金 | P33: 単位 | Q33: 使用量 | R33: 単位
D34: m | N34: 電気 | P34: 円/年 | R34: kWh/年
N35: ※燃料種別を選択してください。 | P35: 円/年 | R35: =VLOOKUP(N35,エネルギー単価!$G$6:$M$11,7,FALSE) -> 
B37: 【自家消費】エネルギー利用設備を置く建物（エネルギー供給設備を設置する場所の敷地内又は別敷地の自己所有建物で自家消費する場合は入力）
C39: ・現状の電気/燃料使用量 | N39: ・建物3 施設情報
C40: 現状の電気/燃料使用量の有無 | K40: 供給先までの距離 | N40: 現状の電気/燃料使用量の有無
L41: m
C42: 項目 | D42: 値 | E42: 単位 | N42: 項目 | O42: 値 | P42: 単位
C43: 延床面積 | E43: ㎡ | N43: 延床面積 | P43: ㎡
C44: 建物用途 | E44: 選択してください。 | N44: 建物用途 | P44: 選択してください。
C46: 項目 | D46: 料金 | E46: 単位 | F46: 使用量 | G46: 単位 | N46: 項目 | O46: 料金 | P46: 単位 | Q46: 使用量 | R46: 単位
C47: 電気 | E47: 円/年 | G47: kWh/年 | N47: 電気 | P47: 円/年 | R47: kWh/年
C48: ※燃料種別を選択してください。 | E48: 円/年 | G48: =VLOOKUP(C48,エネルギー単価!G6:M11,7,FALSE) ->  | N48: ※燃料種別を選択してください。 | P48: 円/年 | R48: =VLOOKUP(N48,エネルギー単価!$G$6:$M$11,7,FALSE) -> 
N52: ・建物4 施設情報
N53: 現状の電気/燃料使用量の有無
K55: 供給先までの距離 | N55: 項目 | O55: 値 | P55: 単位
K56: 400 | L56: m | N56: 延床面積 | P56: ㎡
N57: 建物用途 | P57: 選択してください。
N59: 項目 | O59: 料金 | P59: 単位 | Q59: 使用量 | R59: 単位
N60: 電気 | P60: 円/年 | R60: kWh/年
N61: ※燃料種別を選択してください。 | P61: 円/年 | R61: =VLOOKUP(N61,エネルギー単価!$G$6:$M$11,7,FALSE) -> 
N65: ・建物5 施設情報
N66: 現状の電気/燃料使用量の有無
K68: 供給先までの距離 | N68: 項目 | O68: 値 | P68: 単位
L69: m | N69: 延床面積 | P69: ㎡
N70: 建物用途 | P70: 選択してください。
N72: 項目 | O72: 料金 | P72: 単位 | Q72: 使用量 | R72: 単位
N73: 電気 | P73: 円/年 | R73: kWh/年
N74: ※燃料種別を選択してください。 | P74: 円/年 | R74: =VLOOKUP(N74,エネルギー単価!$G$6:$M$11,7,FALSE) -> 
N78: ・建物6 施設情報
N79: 現状の電気/燃料使用量の有無
K81: 供給先までの距離 | N81: 項目 | O81: 値 | P81: 単位
L82: m | N82: 延床面積 | P82: ㎡
N83: 建物用途 | P83: 選択してください。
N85: 項目 | O85: 料金 | P85: 単位 | Q85: 使用量 | R85: 単位
N86: 電気 | P86: 円/年 | R86: kWh/年
N87: ※燃料種別を選択してください。 | P87: 円/年 | R87: =VLOOKUP(N87,エネルギー単価!$G$6:$M$11,7,FALSE) -> 
N91: ・建物7 施設情報
N92: 現状の電気/燃料使用量の有無
K94: 供給先までの距離 | N94: 項目 | O94: 値 | P94: 単位
L95: m | N95: 延床面積 | P95: ㎡
N96: 建物用途 | P96: 選択してください。
N98: 項目 | O98: 料金 | P98: 単位 | Q98: 使用量 | R98: 単位
N99: 電気 | P99: 円/年 | R99: kWh/年
N100: ※燃料種別を選択してください。 | P100: 円/年 | R100: =VLOOKUP(N100,エネルギー単価!$G$6:$M$11,7,FALSE) -> 
N104: ・建物8 施設情報
N105: 現状の電気/燃料使用量の有無
K107: 供給先までの距離 | N107: 項目 | O107: 値 | P107: 単位
L108: m | N108: 延床面積 | P108: ㎡
N109: 建物用途 | P109: 選択してください。
N111: 項目 | O111: 料金 | P111: 単位 | Q111: 使用量 | R111: 単位
N112: 電気 | P112: 円/年 | R112: kWh/年
N113: ※燃料種別を選択してください。 | P113: 円/年 | R113: =VLOOKUP(N113,エネルギー単価!$G$6:$M$11,7,FALSE) -> 
N117: ・建物9 施設情報
N118: 現状の電気/燃料使用量の有無
K120: 供給先までの距離 | N120: 項目 | O120: 値 | P120: 単位
L121: m | N121: 延床面積 | P121: ㎡
N122: 建物用途 | P122: 選択してください。
N124: 項目 | O124: 料金 | P124: 単位 | Q124: 使用量 | R124: 単位
N125: 電気 | P125: 円/年 | R125: kWh/年
N126: ※燃料種別を選択してください。 | P126: 円/年 | R126: =VLOOKUP(N126,エネルギー単価!$G$6:$M$11,7,FALSE) -> 
N130: ・建物10 施設情報
N131: 現状の電気/燃料使用量の有無
K133: 供給先までの距離 | N133: 項目 | O133: 値 | P133: 単位
K134: 1000 | L134: m | N134: 延床面積 | P134: ㎡
N135: 建物用途 | P135: 選択してください。
N137: 項目 | O137: 料金 | P137: 単位 | Q137: 使用量 | R137: 単位
N138: 電気 | O138: 208000 | P138: 円/年 | Q138: 10000 | R138: kWh/年
N139: ※燃料種別を選択してください。 | P139: 円/年 | R139: =VLOOKUP(N139,エネルギー単価!$G$6:$M$11,7,FALSE) -> 
A143: a
B144: ※非表示にする。
B145: 自分の施設の情報 コントローラー
C147: ・施設情報
C148: 項目 | D148: 値 | E148: 単位
C149: 延床面積 | D149: =D43 -> 0 | E149: ㎡
C150: 建築面積 | D150: =D21 -> 0 | E150: ㎡
C151: 敷地面積 | D151: =D19 -> 0 | E151: ㎡
C152: 建物用途 | D152: =D44 -> 0
C154: ・現状の電気/燃料使用量の有無が「無し」の場合の使用量 原単位より計算
C155: 項目 | D155: 料金 | E155: 単位 | F155: 使用量 | G155: 単位
C156: 電気料金 | D156: =F156*エネルギー単価!C4 -> 0 | E156: 円/年 | F156: =IF(D152=0,0,VLOOKUP(D152,負荷!B4:J9,2,FALSE)*D149) -> 0 | G156: kWh/年
C157: =C48 -> ※燃料種別を選択してください。 | E157: 円/年 | G157: =VLOOKUP(C157,エネルギー単価!G6:M11,7,FALSE) -> 
C159: ・計算に利用する現状のエネルギー使用量・料金
C160: 項目 | D160: 料金 | E160: 単位 | F160: 使用量 | G160: 単位
C161: 電気料金 | D161: =IF($D$40="有り",D47,D156) -> 0 | E161: 円/年 | F161: =IF($D$40="有り",F47,F156) -> 0 | G161: kWh/年
C162: =C48 -> ※燃料種別を選択してください。 | D162: =IF($D$40="有り",D48,D157) -> 0 | E162: 円/年 | F162: =IF($D$40="有り",F48,F157) -> 0 | G162: =VLOOKUP(C162,エネルギー単価!G6:M11,7,FALSE) -> 
A164: a

Sheet 結果_太陽光 (hidden)
B1: 検討結果
B2: 面的利用/個別利用 | D2: =計画資料!D5 -> 面的利用
B3: 再生可能エネルギーの種類 | D3: =計画資料!D7 -> 太陽光
B4: 熱の利用用途 | D4: =IF(D3="太陽光","-",計画資料!D8) -> -
B6: 初期投資 | C6: =投資回収計算_太陽光!D4 -> 0 | E6: 千円
B7: 年間利益 | C7: =投資回収計算_太陽光!D5 -> 0 | E7: 千円/年
B8: 投資回収年数 | C8: =IF(投資回収計算_太陽光!L4>=50,"回収不可",投資回収計算_太陽光!L4) -> 回収不可 | E8: 年
B9: （参考）メンテナンス費 | D9: =INT(C6*2/100) -> 0 | E9: 千円/年
B10: ※メンテナンス費は初期投資の2％と想定している。
B26: ※年間利益は、「再エネ導入による現状からのエネルギー削減料＋売電/売熱料」の試算結果。
B27: ※太陽光発電設備の廃棄費用（初期投資額の5%とする）と太陽光パネル等のシステム更新費用を計上。自営線の更新は考慮していない。
B28: ※本検討は概算参考値であるため、再エネ導入の際には詳細検討を行う必要があります。

Sheet 投資回収計算_太陽光 (hidden)
B2: ■投資回収計算 | N2: ■年間エネルギー料金比較（電気） | W2: ■年間エネルギー消費量比較（電気）
C3: 月額 | D3: 年額[千円] | E3: 備考 | G3: 運用年数 | H3: 投資額[千円] | I3: 積算利益[千円] | J3: 単年利益[千円/年] | K3: 投資回収年 | L3: 投資回収年 | N3: 項目 | P3: 単位 | Q3: 導入前 | R3: 導入後 | S3: ｴﾈﾙｷﾞｰｺｽﾄ削減料金 | T3: 売電料金 | U3: 単年利益 | W3: S | Y3: 単位 | Z3: 導入前 | AA3: 導入後 | AB3: 削減量 | AC3: 売電/売熱量
B4: 初期投資額 | D4: =エネルギー計算_太陽光!AG17 -> 0 | G4: 0 | H4: =-D4 -> 0 | I4: =H4 -> 0 | K4: =(I4>0)*G4+(I4<=0)*1000 -> 1000 | L4: =MIN(K4:K33) -> 1000 | N4: 自己施設 | O4: 電気料金 | P4: 千円/年 | Q4: =計画資料!D161/1000 -> 0 | R4: =エネルギー計算_太陽光!AB20 -> 0 | S4: =Q4-R4 -> 0
B5: 年間利益 | D5: =U15 -> 0 | G5: =G4+1 -> 1 | I5: =H5+I4+J5 -> 0 | J5: =D5 -> 0 | K5: =(I5>0)*G5+(I5<=0)*1000 -> 1000 | N5: 建物1 | O5: 電気料金 | P5: 千円/年 | Q5: =IF(計画資料!D5="個別建物利用",0,エネルギー計算_太陽光!AO35) -> 0 | R5: =IF(計画資料!D5="個別建物利用",0,エネルギー計算_太陽光!AT35) -> 0 | S5: =Q5-R5 -> 0 | T5: =IF(計画資料!D5="個別建物利用",0,エネルギー計算_太陽光!AR35) -> 0
G6: =G5+1 -> 2 | I6: =H6+I5+J6 -> 0 | J6: =J5 -> 0 | K6: =(I6>0)*G6+(I6<=0)*1000 -> 1000 | N6: 建物2 | O6: 電気料金 | P6: 千円/年 | Q6: =IF(計画資料!D5="個別建物利用",0,エネルギー計算_太陽光!AO36) -> 0 | R6: =IF(計画資料!D5="個別建物利用",0,エネルギー計算_太陽光!AT36) -> 0 | S6: 0 | T6: =IF(計画資料!D5="個別建物利用",0,エネルギー計算_太陽光!AR36) -> 0
G7: 3 | I7: 0 | J7: 0 | K7: 1000 | N7: 建物3 | O7: 電気料金 | P7: 千円/年 | Q7: =IF(計画資料!D5="個別建物利用",0,エネルギー計算_太陽光!AO37) -> 0 | R7: =IF(計画資料!D5="個別建物利用",0,エネルギー計算_太陽光!AT37) -> 0 | S7: 0 | T7: =IF(計画資料!D5="個別建物利用",0,エネルギー計算_太陽光!AR37) -> 0
G8: 4 | I8: 0 | J8: 0 | K8: 1000 | N8: 建物4 | O8: 電気料金 | P8: 千円/年 | Q8: =IF(計画資料!D5="個別建物利用",0,エネルギー計算_太陽光!AO38) -> 0 | R8: =IF(計画資料!D5="個別建物利用",0,エネルギー計算_太陽光!AT38) -> 0 | S8: 0 | T8: =IF(計画資料!D5="個別建物利用",0,エネルギー計算_太陽光!AR38) -> 0
G9: 5 | I9: 0 | J9: 0 | K9: 1000 | N9: 建物5 | O9: 電気料金 | P9: 千円/年 | Q9: =IF(計画資料!D5="個別建物利用",0,エネルギー計算_太陽光!AO39) -> 0 | R9: =IF(計画資料!D5="個別建物利用",0,エネルギー計算_太陽光!AT39) -> 0 | S9: 0 | T9: =IF(計画資料!D5="個別建物利用",0,エネルギー計算_太陽光!AR39) -> 0
G10: 6 | I10: 0 | J10: 0 | K10: 1000 | N10: 建物6 | O10: 電気料金 | P10: 千円/年 | Q10: =IF(計画資料!D5="個別建物利用",0,エネルギー計算_太陽光!AO40) -> 0 | R10: =IF(計画資料!D5="個別建物利用",0,エネルギー計算_太陽光!AT40) -> 0 | S10: 0 | T10: =IF(計画資料!D5="個別建物利用",0,エネルギー計算_太陽光!AR40) -> 0
G11: 7 | I11: 0 | J11: 0 | K11: 1000 | N11: 建物7 | O11: 電気料金 | P11: 千円/年 | Q11: =IF(計画資料!D5="個別建物利用",0,エネルギー計算_太陽光!AO41) -> 0 | R11: =IF(計画資料!D5="個別建物利用",0,エネルギー計算_太陽光!AT41) -> 0 | S11: 0 | T11: =IF(計画資料!D5="個別建物利用",0,エネルギー計算_太陽光!AR41) -> 0
G12: 8 | I12: 0 | J12: 0 | K12: 1000 | N12: 建物8 | O12: 電気料金 | P12: 千円/年 | Q12: =IF(計画資料!D5="個別建物利用",0,エネルギー計算_太陽光!AO42) -> 0 | R12: =IF(計画資料!D5="個別建物利用",0,エネルギー計算_太陽光!AT42) -> 0 | S12: 0 | T12: =IF(計画資料!D5="個別建物利用",0,エネルギー計算_太陽光!AR42) -> 0
G13: 9 | I13: 0 | J13: 0 | K13: 1000 | N13: 建物9 | O13: 電気料金 | P13: 千円/年 | Q13: =IF(計画資料!D5="個別建物利用",0,エネルギー計算_太陽光!AO43) -> 0 | R13: =IF(計画資料!D5="個別建物利用",0,エネルギー計算_太陽光!AT43) -> 0 | S13: 0 | T13: =IF(計画資料!D5="個別建物利用",0,エネルギー計算_太陽光!AR43) -> 0
G14: 10 | I14: 0 | J14: 0 | K14: 1000 | N14: 建物10 | O14: 電気料金 | P14: 千円/年 | Q14: =IF(計画資料!D5="個別建物利用",0,エネルギー計算_太陽光!AO44) -> 0 | R14: =IF(計画資料!D5="個別建物利用",0,エネルギー計算_太陽光!AT44) -> 0 | S14: 0 | T14: =IF(計画資料!D5="個別建物利用",0,エネルギー計算_太陽光!AR44) -> 0
G15: 11 | I15: 0 | J15: 0 | K15: 1000 | N15: 自己 年間利益 | O15: 電気料金 | P15: 千円/年 | Q15: =SUM(Q4) -> 0 | R15: =SUM(R4) -> 0 | S15: =SUM(S4) -> 0 | T15: =SUM(T5:T14) -> 0 | U15: =S15+T15 -> 0
G16: 12 | I16: 0 | J16: 0 | K16: 1000 | N16: 他者 | O16: 電気料金 | P16: 千円/年 | Q16: =SUM(Q5:Q14) -> 0 | R16: =SUM(R5:R14) -> 0 | S16: =SUM(S5:S14) -> 0
G17: 13 | I17: 0 | J17: 0 | K17: 1000 | W17: 電気 | Y17: kWh/年 | Z17: =計画資料!F161 -> 0 | AA17: =エネルギー計算_太陽光!AB18 -> 0 | AB17: =Z17-AA17 -> 0 | AC17: =エネルギー計算_太陽光!AB27 -> 0
G18: 14 | I18: 0 | J18: 0 | K18: 1000 | W18: 燃料 | X18: =計画資料!C162 -> ※燃料種別を選択してください。 | Y18: =計画資料!G162 ->  | Z18: =計画資料!F162 -> 0 | AB18: =Z18-AA18 -> 0
G19: 15 | I19: 0 | J19: 0 | K19: 1000
G20: 16 | I20: 0 | J20: 0 | K20: 1000
G21: 17 | I21: 0 | J21: 0 | K21: 1000
G22: 18 | I22: 0 | J22: 0 | K22: 1000
G23: 19 | I23: 0 | J23: 0 | K23: 1000
E24: 20年目に廃棄費用と更新費用を見込む。 | G24: 20 | H24: =-(エネルギー計算_太陽光!AG39+エネルギー計算_太陽光!AG13) -> 0 | I24: 0 | J24: 0 | K24: 1000
E25: 太陽光発電設備の耐用年数20年 | G25: 21 | I25: 0 | J25: 0 | K25: 1000
G26: 22 | I26: 0 | J26: 0 | K26: 1000
G27: 23 | I27: 0 | J27: 0 | K27: 1000
G28: 24 | I28: 0 | J28: 0 | K28: 1000
G29: 25 | I29: 0 | J29: 0 | K29: 1000
G30: 26 | I30: 0 | J30: 0 | K30: 1000
G31: 27 | I31: 0 | J31: 0 | K31: 1000
G32: 28 | I32: 0 | J32: 0 | K32: 1000
G33: 29 | I33: 0 | J33: 0 | K33: 1000
G34: 30 | I34: 0 | J34: 0 | K34: =(I34>0)*G34+(I34<=0)*1000 -> 1000
G35: 31 | I35: =H35+I34+J35 -> 0 | J35: 0 | K35: 1000
G36: 32 | I36: 0 | J36: 0 | K36: 1000
G37: 33 | I37: 0 | J37: 0 | K37: 1000
G38: 34 | I38: 0 | J38: 0 | K38: 1000
G39: 35 | I39: 0 | J39: 0 | K39: 1000
G40: 36 | I40: 0 | J40: 0 | K40: 1000
G41: 37 | I41: =H41+I40+J41 -> 0 | J41: 0 | K41: 1000
G42: 38 | I42: =H42+I41+J42 -> 0 | J42: 0 | K42: 1000
G43: 39 | I43: =H43+I42+J43 -> 0 | J43: 0 | K43: =(I43>0)*G43+(I43<=0)*1000 -> 1000
G44: 40 | H44: =-(エネルギー計算_太陽光!AG39+エネルギー計算_太陽光!AG13) -> 0 | I44: 0 | J44: 0 | K44: 1000
G45: 41 | I45: 0 | J45: 0 | K45: 1000
G46: 42 | I46: 0 | J46: 0 | K46: 1000
G47: 43 | I47: 0 | J47: 0 | K47: 1000
G48: 44 | I48: 0 | J48: 0 | K48: 1000
G49: 45 | I49: =H49+I48+J49 -> 0 | J49: 0 | K49: =(I49>0)*G49+(I49<=0)*1000 -> 1000
G50: 46 | I50: 0 | J50: 0 | K50: 1000
G51: 47 | I51: 0 | J51: 0 | K51: 1000
G52: 48 | I52: 0 | J52: 0 | K52: 1000
G53: 49 | I53: 0 | J53: 0 | K53: 1000
G54: 50 | I54: 0 | J54: 0 | K54: 1000
G55: 51 | I55: =H55+I54+J55 -> 0 | J55: 0 | K55: =(I55>0)*G55+(I55<=0)*1000 -> 1000
G56: 52 | I56: 0 | J56: 0 | K56: 1000
G57: 53 | I57: 0 | J57: 0 | K57: 1000
G58: 54 | I58: 0 | J58: 0 | K58: 1000
G59: 55 | I59: 0 | J59: 0 | K59: 1000
G60: 56 | I60: 0 | J60: 0 | K60: 1000
G61: 57 | I61: 0 | J61: 0 | K61: 1000
G62: 58 | I62: 0 | J62: 0 | K62: 1000
G63: 59 | I63: 0 | J63: 0 | K63: 1000
G64: 60 | H64: =-(エネルギー計算_太陽光!AG39+エネルギー計算_太陽光!AG13) -> 0 | I64: 0 | J64: 0 | K64: 1000
G65: 61 | I65: 0 | J65: 0 | K65: 1000
G66: 62 | I66: 0 | J66: 0 | K66: 1000
G67: 63 | I67: 0 | J67: 0 | K67: 1000
G68: 64 | I68: 0 | J68: 0 | K68: 1000
G69: 65 | I69: 0 | J69: 0 | K69: 1000
G70: =G69+1 -> 66 | I70: 0 | J70: =J69 -> 0 | K70: 1000
G71: 67 | I71: 0 | J71: 0 | K71: 1000
G72: 68 | I72: 0 | J72: 0 | K72: 1000
G73: 69 | I73: 0 | J73: 0 | K73: 1000
G74: 70 | I74: 0 | J74: 0 | K74: 1000
G75: 71 | I75: 0 | J75: 0 | K75: 1000
G76: 72 | I76: 0 | J76: 0 | K76: 1000
G77: 73 | I77: 0 | J77: 0 | K77: 1000
G78: 74 | I78: 0 | J78: 0 | K78: 1000
G79: 75 | I79: 0 | J79: 0 | K79: 1000
G80: 76 | I80: 0 | J80: 0 | K80: 1000
G81: 77 | I81: 0 | J81: 0 | K81: 1000
G82: 78 | I82: 0 | J82: 0 | K82: 1000
G83: 79 | I83: 0 | J83: 0 | K83: 1000
G84: 80 | H84: =-(エネルギー計算_太陽光!AG39+エネルギー計算_太陽光!AG13) -> 0 | I84: 0 | J84: 0 | K84: 1000
G85: 81 | I85: 0 | J85: 0 | K85: 1000
G86: 82 | I86: 0 | J86: 0 | K86: 1000
G87: 83 | I87: 0 | J87: 0 | K87: 1000
G88: 84 | I88: 0 | J88: 0 | K88: 1000
G89: 85 | I89: 0 | J89: 0 | K89: 1000
G90: 86 | I90: 0 | J90: 0 | K90: 1000
G91: 87 | I91: 0 | J91: 0 | K91: 1000
G92: 88 | I92: 0 | J92: 0 | K92: 1000
G93: 89 | I93: 0 | J93: 0 | K93: 1000
G94: 90 | I94: 0 | J94: 0 | K94: 1000
G95: 91 | I95: 0 | J95: 0 | K95: 1000
G96: 92 | I96: 0 | J96: 0 | K96: 1000
G97: 93 | I97: 0 | J97: 0 | K97: 1000
G98: 94 | I98: 0 | J98: 0 | K98: 1000
G99: 95 | I99: 0 | J99: 0 | K99: 1000
G100: 96 | I100: 0 | J100: 0 | K100: 1000
G101: 97 | I101: 0 | J101: 0 | K101: 1000
G102: 98 | I102: 0 | J102: 0 | K102: 1000
G103: 99 | I103: 0 | J103: 0 | K103: 1000
G104: 100 | H104: =-(エネルギー計算_太陽光!AG39+エネルギー計算_太陽光!AG13) -> 0 | I104: 0 | J104: 0 | K104: 1000

Sheet エネルギー計算_太陽光 (hidden)
B2: ■太陽光発電 設置面積、発電容量、係数の設定 | H2: ■月別発電量の予想 | I2: 東京 | Z2: ■一次エネルギー削減量原単位 | AA2: 東京 | AE2: ■システム価格（NEDO「調達価格等算定委員会の採用力算出した発電コスト」より）
B3: 項目 | C3: 記号 | D3: 単位 | E3: 値 | F3: 備考 | H3: 項目 | I3: 記号 | J3: 単位 | K3: 1月 | L3: 2月 | M3: 3月 | N3: 4月 | O3: 5月 | P3: 6月 | Q3: 7月 | R3: 8月 | S3: 9月 | T3: 10月 | U3: 11月 | V3: 12月 | W3: 年合計 | X3: 備考 | Z3: 項目 | AA3: 単位 | AB3: 値 | AC3: 備考 | AE3: 項目 | AF3: システム価格(万円/kW) | AG3: システム価格(万円/m2) | AH3: 備考
B4: 延床面積 | D4: m2 | E4: =計画資料!D20 -> 0 | F4: 入力シートより | H4: 月平均傾斜面日射量 | I4: HS | J4: kWh/m2日 | K4: 3.79 | L4: 4 | M4: 3.97 | N4: 4.36 | O4: 4.27 | P4: 3.59 | Q4: 3.78 | R4: 4.14 | S4: 3.23 | T4: 3.19 | U4: 3.16 | V4: 3.31 | W4: =SUM(K4:V4) -> 44.79 | X4: NEDO MONSOLA-11（地点：東京、傾斜角：30度、方位角：0度） | Z4: 電気一次エネルギー換算係数 | AA4: MJ/kWh | AB4: 9.76 | AE4: 非住宅(10kW以上) | AF4: 27.2 | AG4: =AF4*$E$15 -> 2.72 | AH4: ←導入コスト原単位
B5: 建築面積 | D5: m2 | E5: =計画資料!D21 -> 0 | F5: 入力シートより | H5: 月日数 | I5: d | J5: 日/月 | K5: 31 | L5: 28 | M5: 31 | N5: 30 | O5: 31 | P5: 30 | Q5: 31 | R5: 31 | S5: 30 | T5: 31 | U5: 30 | V5: 31 | W5: =SUM(K5:V5) -> 365 | Z5: 年間発電量 | AA5: kWh/年 | AB5: =W14 -> 0 | AE5: 住宅(10kW未満)(出力制御無し) | AF5: 35.8 | AG5: =AF5*$E$15 -> 3.58
B6: 建物用途 | E6: =計画資料!D22 -> 0 | F6: 入力シートより | H6: 月積算傾斜面日射量 | I6: HAM | J6: kWh/m2月 | K6: =K4*K5 -> 117.49 | L6: 112 | M6: 123.07 | N6: 130.8 | O6: 132.37 | P6: 107.7 | Q6: 117.18 | R6: 128.34 | S6: 96.9 | T6: 98.89 | U6: 94.8 | V6: 102.61 | W6: =SUM(K6:V6) -> 1362.15 | Z6: 設置面積 | AA6: m2 | AB6: =E14 -> 0 | AE6: 住宅(10kW未満)(出力制御有り) | AF6: 35 | AG6: =AF6*$E$15 -> 3.5
B7: 設置係数 | C7: - | D7: - | E7: =IF(E6=0,0,VLOOKUP(E6,エネルギー計算_太陽光!B34:F38,4,FALSE)) -> 0 | H7: 月平均気温 | I7: TAV | J7: ℃ | K7: 5.2 | L7: 5.7 | M7: 8.7 | N7: 13.9 | O7: 18.2 | P7: 21.4 | Q7: 25 | R7: 26.4 | S7: 22.8 | T7: 17.5 | U7: 12.1 | V7: 7.6 | X7: 気象庁HP 平年値 https://www.data.jma.go.jp/gmd/risk/obsdl/index.php（閲覧日2018/12/7） | Z7: 一次エネルギー削減量原単位 | AA7: MJ/m2年 | AB7: =AB5*AB4/AB6 ->  | AC7: 設置面積あたり | AE7: システム価格(万円/m2)は設置面積当りの発電容量目安0.1kW/m2にて変換
B8: 屋根面へのパネル設置面積 | C8: SR | D8: m2 | E8: =IF(E6="住宅施設",E4*E7,E5*E7) -> 0 | H8: 加重平均太陽電池モジュール温度上昇 | I8: ⊿T | J8: ℃ | K8: =$E$24 -> 21.5 | L8: 21.5 | M8: 21.5 | N8: 21.5 | O8: 21.5 | P8: 21.5 | Q8: 21.5 | R8: 21.5 | S8: 21.5 | T8: 21.5 | U8: 21.5 | V8: 21.5 | X8: 架台設置形：18.4℃、屋根置き形：21.5℃、建材一体形：28.0℃
B9: 敷地面積 | C9: - | D9: m2 | E9: =計画資料!D19 -> 0 | F9: 入力シートより | H9: 加重平均太陽電池モジュール温度 | I9: TCR | J9: ℃ | K9: =K7+K8 -> 26.7 | L9: 27.2 | M9: 30.2 | N9: 35.4 | O9: 39.7 | P9: 42.9 | Q9: 46.5 | R9: 47.9 | S9: 44.3 | T9: 39 | U9: 33.6 | V9: 29.1 | X9: TCR=TAV+⊿T | Z9: ■自家消費 エネルギーコスト削減量 | AE9: ■イニシャルコスト
B10: 敷地空きスペース | C10: - | D10: m2 | E10: =IF(E9-E5<=0,0,E9-E5) -> 0 | H10: 最大出力温度係数 | I10: αPmax | J10: %/℃ | K10: -0.45 | L10: -0.45 | M10: -0.45 | N10: -0.45 | O10: -0.45 | P10: -0.45 | Q10: -0.45 | R10: -0.45 | S10: -0.45 | T10: -0.45 | U10: -0.45 | V10: -0.45 | X10: 結晶系：-0.4～-0.5(%/℃) | Z10: 項目 | AA10: 単位 | AB10: 値 | AC10: 備考 | AE10: 項目 | AF10: 単位 | AG10: 値 | AH10: 備考
B11: 敷地空きスペース有効面積率 | C11: - | D11: - | E11: 0.8 | F11: 設定 | H11: 温度補正係数 | I11: KPT | J11: - | K11: =1+K10/100*(K9-25) -> 0.99235 | L11: 0.9901 | M11: 0.9766 | N11: 0.9532 | O11: 0.93385 | P11: 0.91945 | Q11: 0.90325 | R11: 0.89695 | S11: 0.91315 | T11: 0.937 | U11: 0.9613 | V11: 0.98155 | Z11: 導入前 年間電気使用量 | AA11: kWh/年 | AB11: =計画資料!F161 -> 0 | AC11: 入力シートより | AE11: システム単価 | AF11: 千円/m2 | AG11: =AG4*10 -> 27.2
B12: 敷地空きスペースへのパネル設置面積 | C12: SR | D12: m2 | E12: =E10*E11 -> 0 | H12: 月別総合設計係数 | I12: K | J12: - | K12: =$E$17*K11 -> 0.7504163898 | L12: 0.7487149368 | M12: 0.7385062189 | N12: 0.7208111078 | O12: 0.706178612 | P12: 0.6952893129 | Q12: 0.6830388513 | R12: 0.6782747829 | S12: 0.6905252445 | T12: 0.7085606462 | U12: 0.7269363385 | V12: 0.7422494155 | X12: K'×KPT | Z12: 導入前 年間電気料金 | AA12: 円/年 | AB12: =計画資料!D161 -> 0 | AC12: 入力シートより | AE12: 設置面積 | AF12: m2 | AG12: =E14 -> 0
B13: 自動計算：太陽光発電パネル設置面積 | C13: S | D13: m2 | E13: =E8+E12 -> 0 | F13: 接地面積を自動計算する場合 | H13: 標準試験条件における日射強度 | I13: GS | J13: kW/m2 | K13: 1 | L13: 1 | M13: 1 | N13: 1 | O13: 1 | P13: 1 | Q13: 1 | R13: 1 | S13: 1 | T13: 1 | U13: 1 | V13: 1 | AA13: 千円/年 | AB13: =AB12/1000 -> 0 | AE13: システム価格 | AF13: 千円 | AG13: =AG11*AG12 -> 0
B14: 太陽光発電パネル設置面積 | C14: S | D14: m2 | E14: =IF(計画資料!D14="入力",計画資料!D15,計画資料!D23) -> 0 | F14: 計算に使う設置面積 | H14: 月間システム発電電力量 | I14: Epm | J14: kWh/月 | K14: =K12*$E$16*K6/K13 -> 0 | L14: 0 | M14: 0 | N14: 0 | O14: 0 | P14: 0 | Q14: 0 | R14: 0 | S14: 0 | T14: 0 | U14: 0 | V14: 0 | W14: =SUM(K14:V14) -> 0 | Z14: 電気料金単価 | AA14: 円/kWh | AB14: =IF(AB12=0,0,AB12/AB11) -> 0 | AE14: 自営線単価 | AF14: 千円/m | AG14: =送電線価格!G11 -> 21
B15: 設置面積当りの発電容量目安 | C15: PAS' | D15: kW/m2 | E15: 0.1 | Z15: 太陽光発電 年間発電量 | AA15: kWh/年 | AB15: =W14 -> 0 | AE15: 自営線距離 合計 | AF15: m | AG15: =IF(計画資料!D5="面的利用",AG32,0) -> 0
B16: 設置面積当りの発電容量 | C16: PAS | D16: kW | E16: =E14*E15 -> 0 | Z16: 供給側建物での削減コスト | AA16: 円/年 | AB16: =IF(AB15>=AB11,AB11*AB14,AB15*AB14) -> 0 | AE16: 自営線 価格 | AF16: 千円 | AG16: =AG14*AG15 -> 0
B17: 基本設計係数 | C17: K' | D17: - | E17: =E18*E19*E20*E21*E22 -> 0.75620133 | AA17: 千円/年 | AB17: =AB16/1000 -> 0 | AE17: イニシャルコスト | AF17: 千円 | AG17: =AG13+AG16 -> 0 | AH17: ="⇒「計算"&ADDRESS(ROW(投資回収計算_太陽光!D4),COLUMN(投資回収計算_太陽光!D4),4)&"」へ" -> ⇒「計算D4」へ
B18: 日射量年変動係数 | C18: KHD | D18: - | E18: 0.97 | Z18: 導入後 年間電気使用量 | AA18: kWh/年 | AB18: =IF(AB11-AB15<=0,0,AB11-AB15) -> 0 | AC18: ="⇒「計算"&ADDRESS(ROW(投資回収計算_太陽光!AA17),COLUMN(投資回収計算_太陽光!AA17),4)&"」へ" -> ⇒「計算AA17」へ
B19: 経時変化補正係数 | C19: KPD | D19: - | E19: 0.95 | F19: 結晶系：0.95、アモルファス系：0.87 | Z19: 導入後 年間電気料金 | AA19: 円/年 | AB19: =IF(AB12-AB16<=0,0,AB12-AB16) -> 0 | AE19: ■自営線距離 | AF19: 検討建物数に応じて距離を合計 | AJ19: ■面的利用 エネルギー利用設備を置く建物 電力需要量
B20: アレイ負荷整合補正係数 | C20: KPM | D20: - | E20: 0.94 | AA20: 千円/年 | AB20: =AB19/1000 -> 0 | AC20: ="⇒「計算"&ADDRESS(ROW(投資回収計算_太陽光!R4),COLUMN(投資回収計算_太陽光!R4),4)&"」へ" -> ⇒「計算R4」へ | AE20: 項目 | AF20: 単位 | AG20: 値 | AH20: 備考 | AJ20: 項目 | AK20: 建物用途 | AL20: 現状の電気/燃料使用量の有無 | AM20: 原単位から計算した電力需要量[kWh/年] | AN20: 入力された電気使用量[kWh/年] | AO20: 計算に使用する電気使用量[kWh/年] | AP20: 備考 | AQ20: 売電量可能量[kWh/年] | AR20: 売電量[kWh/年] | AS20: 導入後電気使用量[kWh/年]
B21: アレイ回路補正係数 | C21: KPA | D21: - | E21: 0.97 | Z21: 発電量が年間電気使用量を超える場合は年間電気使用量を全て削減すると想定。 | AE21: 建物1 | AF21: m | AG21: =IF(計画資料!$D$6>=1,計画資料!$K$15,0) -> 0 | AH21: 入力シートより | AJ21: 建物1 | AK21: =計画資料!O18 -> 0 | AL21: =計画資料!O14 -> 0 | AM21: =負荷!D26 -> 0 | AN21: =IF(計画資料!D6>=1,計画資料!Q21,0) -> 0 | AO21: =IF(AL21="有り",AN21,AM21) -> 0 | AP21: 入力シートより | AQ21: =AB25 -> 0 | AR21: =MIN(AO21,AQ21) -> 0 | AS21: =AO21-AR21 -> 0
B22: パワーコンディショナ実行効率 | C22: ηINO | D22: - | E22: 0.9 | AE22: 建物2 | AF22: m | AG22: =IF(計画資料!$D$6>=2,計画資料!$K$28,0) -> 0 | AH22: 入力シートより | AJ22: 建物2 | AK22: =計画資料!O31 -> 0 | AL22: =計画資料!O27 -> 0 | AM22: =負荷!E26 -> 0 | AN22: =IF(計画資料!D6>=2,計画資料!Q34,0) -> 0 | AO22: =IF(AL22="有り",AN22,AM22) -> 0 | AP22: 入力シートより | AQ22: =IF(AO21>=AQ21,0,AQ21-AO21) -> 0 | AR22: =MIN(AO22,AQ22) -> 0 | AS22: =AO22-AR22 -> 0
B23: 設置形式 | E23: 屋根置き形 | F23: 選択してください。 | Z23: ■売電量・他者電気料金 | AE23: 建物3 | AF23: m | AG23: =IF(計画資料!$D$6>=3,計画資料!$K$41,0) -> 0 | AH23: 入力シートより | AJ23: 建物3 | AK23: =計画資料!O44 -> 0 | AL23: =計画資料!O40 -> 0 | AM23: =負荷!F26 -> 0 | AN23: =IF(計画資料!D6>=3,計画資料!Q47,0) -> 0 | AO23: 0 | AP23: 入力シートより | AQ23: =IF(AO22>=AQ22,0,AQ22-AO22) -> 0 | AR23: =MIN(AO23,AQ23) -> 0 | AS23: 0
B24: 加重平均太陽電池モジュール温度上昇 | C24: ⊿T | D24: ℃ | E24: =VLOOKUP(E23,B28:E30,4,FALSE) -> 21.5 | Z24: 項目 | AA24: 単位 | AB24: 値 | AC24: 備考 | AE24: 建物4 | AF24: m | AG24: =IF(計画資料!$D$6>=4,計画資料!$K$56,0) -> 0 | AH24: 入力シートより | AJ24: 建物4 | AK24: =計画資料!O57 -> 0 | AL24: =計画資料!O53 -> 0 | AM24: =負荷!G26 -> 0 | AN24: =IF(計画資料!D6>=4,計画資料!Q60,0) -> 0 | AO24: 0 | AP24: 入力シートより | AQ24: =IF(AO23>=AQ23,0,AQ23-AO23) -> 0 | AR24: 0 | AS24: 0
Z25: 年間売電可能量 | AA25: kWh/年 | AB25: =IF(AB15-AB11<=0,0,AB15-AB11) -> 0 | AE25: 建物5 | AF25: m | AG25: =IF(計画資料!$D$6>=5,計画資料!$K$69,0) -> 0 | AH25: 入力シートより | AJ25: 建物5 | AK25: =計画資料!O70 -> 0 | AL25: =計画資料!O66 -> 0 | AM25: =負荷!H26 -> 0 | AN25: =IF(計画資料!D6>=5,計画資料!Q73,0) -> 0 | AO25: 0 | AP25: 入力シートより | AQ25: =IF(AO24>=AQ24,0,AQ24-AO24) -> 0 | AR25: 0 | AS25: 0
B26: ■加重平均太陽電池モジュール温度上昇 | Z26: 需要側施設年間電力需要量 | AA26: kWh/年 | AB26: =IF(計画資料!D5="面的利用",AO31,0) -> 0 | AE26: 建物6 | AF26: m | AG26: =IF(計画資料!$D$6>=6,計画資料!$K$82,0) -> 0 | AH26: 入力シートより | AJ26: 建物6 | AK26: =計画資料!O83 -> 0 | AL26: =計画資料!O79 -> 0 | AM26: =負荷!I26 -> 0 | AN26: =IF(計画資料!D6>=6,計画資料!Q86,0) -> 0 | AO26: 0 | AP26: 入力シートより | AQ26: 0 | AR26: 0 | AS26: 0
B27: 設置形式 | C27: 記号 | D27: 単位 | E27: 値 | Z27: 年間売電量 | AA27: kWh/年 | AB27: =IF(AB25>=AB26,AB26,AB25) -> 0 | AC27: ="⇒「計算"&ADDRESS(ROW(投資回収計算_太陽光!AC17),COLUMN(投資回収計算_太陽光!AC17),4)&"」へ" -> ⇒「計算AC17」へ | AE27: 建物7 | AF27: m | AG27: =IF(計画資料!$D$6>=7,計画資料!$K$95,0) -> 0 | AH27: 入力シートより | AJ27: 建物7 | AK27: =計画資料!O96 -> 0 | AL27: =計画資料!O92 -> 0 | AM27: =負荷!J26 -> 0 | AN27: =IF(計画資料!D6>=7,計画資料!Q99,0) -> 0 | AO27: 0 | AP27: 入力シートより | AQ27: 0 | AR27: 0 | AS27: 0
B28: 架台設置形 | C28: ⊿T | D28: ℃ | E28: 18.4 | Z28: 売電単価 | AA28: 円/kWh | AB28: =計画資料!D28 -> 0 | AC28: 入力シートより | AE28: 建物8 | AF28: m | AG28: =IF(計画資料!$D$6>=8,計画資料!$K$108,0) -> 0 | AH28: 入力シートより | AJ28: 建物8 | AK28: =計画資料!O109 -> 0 | AL28: =計画資料!O105 -> 0 | AM28: =負荷!K26 -> 0 | AN28: =IF(計画資料!D6>=8,計画資料!Q112,0) -> 0 | AO28: 0 | AP28: 入力シートより | AQ28: 0 | AR28: 0 | AS28: 0
B29: 屋根置き形 | C29: ⊿T | D29: ℃ | E29: 21.5 | Z29: 年間売電料金 | AA29: 円/年 | AB29: =AB27*AB28 -> 0 | AE29: 建物9 | AF29: m | AG29: =IF(計画資料!$D$6>=9,計画資料!$K$121,0) -> 0 | AH29: 入力シートより | AJ29: 建物9 | AK29: =計画資料!O122 -> 0 | AL29: =計画資料!O118 -> 0 | AM29: =負荷!L26 -> 0 | AN29: =IF(計画資料!D6>=9,計画資料!Q125,0) -> 0 | AO29: 0 | AP29: 入力シートより | AQ29: 0 | AR29: 0 | AS29: 0
B30: 建材一体形 | C30: ⊿T | D30: ℃ | E30: 28 | AA30: 千円/年 | AB30: =AB29/1000 -> 0 | AE30: 建物10 | AF30: m | AG30: =IF(計画資料!$D$6>=10,計画資料!$K$134,0) -> 0 | AH30: 入力シートより | AJ30: 建物10 | AK30: =計画資料!O135 -> 0 | AL30: =計画資料!O131 -> 0 | AM30: =負荷!M26 -> 0 | AN30: =IF(計画資料!D6>=10,計画資料!Q138,0) -> 0 | AO30: 0 | AP30: 入力シートより | AQ30: 0 | AR30: 0 | AS30: =AO30-AR30 -> 0
Z31: 他者 導入前年間電気料金 | AA31: 千円/年 | AB31: =AO45 -> 0 | AE31: エネルギー供給設備を設置する施設 | AF31: m | AG31: =計画資料!C34 -> 0 | AH31: 入力シートより | AJ31: 合計 | AM31: =SUM(AM21:AM30) -> 0 | AN31: =SUM(AN21:AN30) -> 0 | AO31: =SUM(AO21:AO30) -> 0 | AQ31: ー | AR31: =SUM(AR21:AR30) -> 0 | AS31: =SUM(AS21:AS30) -> 0
B32: ■太陽光発電 設置係数 | Z32: 他者 導入後年間電気料金 | AA32: 千円/年 | AB32: =AT45 -> 0 | AE32: 合計 | AG32: =SUM(AG21:AG31) -> 0
B33: 建物用途 | C33: 記号 | D33: 単位 | E33: 設置係数 | F33: 備考 | AJ33: ■面的利用 エネルギー利用設備を置く建物 電力料金
B34: 住宅施設 | E34: 0.13 | F34: 延床面積に対する割合 | AE34: 設定建物数 | AF34: =計画資料!$D$6 -> 0 | AG34: 建物 | AH34: 入力シートより | AJ34: 項目 | AK34: 建物用途 | AL34: 現状の電気/燃料使用量の有無 | AM34: 原単位から計算した電気料金[千円/年] | AN34: 入力された電気料金[千円/年] | AO34: 計算に使用する電気料金[千円/年] | AP34: 備考 | AQ34: 電気料金単価[円/kWh] | AR34: 売電料金[千円/年] | AS34: 導入後の系統電力電気料金[千円/年] | AT34: 導入後電気料金[千円/年]
B35: 業務施設 | E35: =E42 -> 0.3 | F35: 庁舎想定 | AJ35: 建物1 | AK35: =計画資料!O18 -> 0 | AL35: =計画資料!O14 -> 0 | AM35: =AM21*エネルギー単価!$N$5/1000 -> 0 | AN35: =IF(計画資料!D6>=1,計画資料!O21/1000,0) -> 0 | AO35: =IF(AL35="有り",AN35,AM35) -> 0 | AP35: 入力シートより | AQ35: =IF(OR(AO35=0,AO21=0),0,AO35/AO21*1000) -> 0 | AR35: =AR21*$AB$28/1000 -> 0 | AS35: =AS21*AQ35/1000 -> 0 | AT35: =AR35+AS35 -> 0
B36: 商業施設 | E36: =E48 -> 0.42 | F36: 道の駅想定 | AE36: ■ランニングコスト | AJ36: 建物2 | AK36: =計画資料!O31 -> 0 | AL36: =計画資料!O27 -> 0 | AM36: =AM22*エネルギー単価!$N$5/1000 -> 0 | AN36: =IF(計画資料!D6>=2,計画資料!O34/1000,0) -> 0 | AO36: =IF(AL36="有り",AN36,AM36) -> 0 | AP36: 入力シートより | AQ36: =IF(OR(AO36=0,AO22=0),0,AO36/AO22*1000) -> 0 | AR36: =AR22*$AB$28/1000 -> 0 | AS36: 0 | AT36: =AR36+AS36 -> 0
B37: 宿泊施設 | E37: =E42 -> 0.3 | F37: 庁舎想定 | AE37: 項目 | AF37: 単位 | AG37: 値 | AH37: 備考 | AJ37: 建物3 | AK37: =計画資料!O44 -> 0 | AL37: =計画資料!O40 -> 0 | AM37: =AM23*エネルギー単価!$N$5/1000 -> 0 | AN37: =IF(計画資料!D6>=3,計画資料!O47/1000,0) -> 0 | AO37: 0 | AP37: 入力シートより | AQ37: 0 | AR37: 0 | AS37: 0 | AT37: 0
B38: 医療施設 | E38: =E45 -> 0.05 | F38: 医療施設想定 | AE38: メンテナンスコスト | AF38: 千円/年 | AG38: =AG17*2/100 -> 0 | AH38: イニシャルの2% | AJ38: 建物4 | AK38: =計画資料!O57 -> 0 | AL38: =計画資料!O53 -> 0 | AM38: =AM24*エネルギー単価!$N$5/1000 -> 0 | AN38: =IF(計画資料!D6>=4,計画資料!O60/1000,0) -> 0 | AO38: 0 | AP38: 入力シートより | AQ38: 0 | AR38: 0 | AS38: 0 | AT38: 0
B39: 参考：平成21年度再生可能エネルギー導入ポテンシャル調査報告書 第３章p30 シナリオ２の屋上と想定 | AE39: 廃棄費用 | AF39: 千円 | AG39: =AG17*5/100 -> 0 | AH39: イニシャルの5% | AJ39: 建物5 | AK39: =計画資料!O70 -> 0 | AL39: =計画資料!O66 -> 0 | AM39: =AM25*エネルギー単価!$N$5/1000 -> 0 | AN39: =IF(計画資料!D6>=5,計画資料!O73/1000,0) -> 0 | AO39: 0 | AP39: 入力シートより | AQ39: 0 | AR39: 0 | AS39: 0 | AT39: 0
B40: 平成25年度再生可能エネルギーに関するゾーニング基礎情報整備報告書(3章p29中規模共同住宅レベル２) https://www.env.go.jp/earth/report/h26-05/index.html | AJ40: 建物6 | AK40: =計画資料!O83 -> 0 | AL40: =計画資料!O79 -> 0 | AM40: =AM26*エネルギー単価!$N$5/1000 -> 0 | AN40: =IF(計画資料!D6>=6,計画資料!O86/1000,0) -> 0 | AO40: 0 | AP40: 入力シートより | AQ40: 0 | AR40: 0 | AS40: 0 | AT40: 0
B41: 用途 | C41: 記号 | D41: 単位 | E41: 設置係数 | F41: 備考 | AJ41: 建物7 | AK41: =計画資料!O96 -> 0 | AL41: =計画資料!O92 -> 0 | AM41: =AM27*エネルギー単価!$N$5/1000 -> 0 | AN41: =IF(計画資料!D6>=7,計画資料!O99/1000,0) -> 0 | AO41: 0 | AP41: 入力シートより | AQ41: 0 | AR41: 0 | AS41: 0 | AT41: 0
B42: 庁舎 | E42: 0.3 | AJ42: 建物8 | AK42: =計画資料!O109 -> 0 | AL42: =計画資料!O105 -> 0 | AM42: =AM28*エネルギー単価!$N$5/1000 -> 0 | AN42: =IF(計画資料!D6>=8,計画資料!O112/1000,0) -> 0 | AO42: 0 | AP42: 入力シートより | AQ42: 0 | AR42: 0 | AS42: 0 | AT42: 0
B43: 学校 | E43: 0.42 | AJ43: 建物9 | AK43: =計画資料!O122 -> 0 | AL43: =計画資料!O118 -> 0 | AM43: =AM29*エネルギー単価!$N$5/1000 -> 0 | AN43: =IF(計画資料!D6>=9,計画資料!O125/1000,0) -> 0 | AO43: 0 | AP43: 入力シートより | AQ43: 0 | AR43: 0 | AS43: 0 | AT43: 0
B44: 文化施設 | E44: 0.38 | AJ44: 建物10 | AK44: =計画資料!O135 -> 0 | AL44: =計画資料!O131 -> 0 | AM44: =AM30*エネルギー単価!$N$5/1000 -> 0 | AN44: =IF(計画資料!D6>=10,計画資料!O138/1000,0) -> 0 | AO44: 0 | AP44: 入力シートより | AQ44: =IF(OR(AO44=0,AO30=0),0,AO44/AO30*1000) -> 0 | AR44: =AR30*$AB$28/1000 -> 0 | AS44: 0 | AT44: 0
B45: 医療施設 | E45: 0.05 | AJ45: 合計 | AM45: =SUM(AM35:AM44) -> 0 | AN45: =SUM(AN35:AN44) -> 0 | AO45: =SUM(AO35:AO44) -> 0 | AR45: =SUM(AR35:AR44) -> 0 | AS45: =SUM(AS35:AS44) -> 0 | AT45: =SUM(AT35:AT44) -> 0
B46: 上水施設 | E46: 0 | F46: 日処理量[m3/日]
B47: 下水処理施設 | E47: 0.07
B48: 道の駅 | E48: 0.42
B49: 工場 | E49: 0.59 | F49: 建築面積
B50: 発電所 | E50: 0.43
B51: 参考：平成21年度再生可能エネルギー導入ポテンシャル調査報告書 第３省p30 シナリオ２の屋上と想定

Sheet 送電線価格 (hidden)
B2: ■送電線の価格
B3: ◆条件 | F3: ◆試算
B4: 項目 | C4: 値 | D4: 単位 | F4: 項目 | G4: 単価 | H4: 単位 | I4: 数量 | J4: 金額 | K4: 備考
B5: 亘長 | C5: 10000 | D5: m | F5: 電柱 | G5: 304000 | H5: 円/本 | I5: =ROUND($C$5/$C$6,0) -> 500 | J5: =G5*I5 -> 152000000 | K5: 16m 人力の場合
B6: 電柱の径間 | C6: 20 | D6: mで1本（1径間） | F6: 装柱材 腕金 | G6: =10000+3930 -> 13930 | H6: 円/本 | I6: =ROUND($C$5/$C$6,0) -> 500 | J6: =G6*I6 -> 6965000 | K6: 材料費：10000円(概算)、取付費3930円（900mm）
B7: 径間 | C7: =C5/C6 -> 500 | D7: 径間 | F7: 装柱材 支線 | G7: 32600 | H7: 円/本 | I7: =ROUND($C$5/$C$6,0) -> 500 | J7: =G7*I7 -> 16300000 | K7: 22mm2
B8: 条数 | C8: 3 | D8: 条 | F8: 送電線 | G8: =(360*C6+16700)*C8 -> 71700 | H8: 円/径間 | I8: =ROUND($C$5/$C$6,0) -> 500 | J8: =G8*I8 -> 35850000 | K8: 38mm2 材料360円/m、1条1径間取付費 16700円
F9: 合計 | J9: =ROUNDUP(SUM(J5:J8),0) -> 211115000
K10: 参考：積算実務マニュアル
F11: 1m当たりの単価 | G11: =ROUND(J9/C5/1000,0) -> 21 | H11: 千円/m

Sheet 負荷 (hidden)
B2: ■熱負荷原単位
B3: 建物用途 | C3: 電力負荷 | E3: 給湯負荷 | G3: 暖房負荷 | I3: 冷房負荷 | K3: 根拠資料
B4: 住宅施設 | C4: 21 | D4: kWh/m2年 | E4: 125.58 | F4: MJ/m2年 | G4: 83.72 | H4: MJ/m2年 | I4: 33.49 | J4: MJ/m2年 | K4: [1]
B5: 業務施設 | C5: 156 | D5: kWh/m2年 | E5: 9.21 | F5: MJ/m2年 | G5: 129.77 | H5: MJ/m2年 | I5: 293.02 | J5: MJ/m2年 | K5: [1]
B6: 商業施設 | C6: 226 | D6: kWh/m2年 | E6: 96.28 | F6: MJ/m2年 | G6: 146.51 | H6: MJ/m2年 | I6: 523.25 | J6: MJ/m2年 | K6: [1]
B7: 宿泊施設 | C7: 200 | D7: kWh/m2年 | E7: 334.88 | F7: MJ/m2年 | G7: 334.88 | H7: MJ/m2年 | I7: 418.6 | J7: MJ/m2年 | K7: [1]
B8: 医療施設 | C8: 170 | D8: kWh/m2年 | E8: 334.88 | F8: MJ/m2年 | G8: 309.76 | H8: MJ/m2年 | I8: 334.88 | J8: MJ/m2年 | K8: [1]
B9: スポーツ施設 | C9: 250 | D9: kWh/m2年 | E9: 3663 | F9: GJ/年 | G9: 339.12 | H9: MJ/m2年 | I9: 339.12 | J9: MJ/m2年 | K9: [2]
B10: [1]：地域冷暖房技術手引書改定第4版、一般社団法人都市環境エネルギー協会、2013年11月
B11: [2]：天然ガスコージェネレーション計画・設計マニュアル2005、日本エネルギー学会、2005年4月25日
B13: ■エネルギー供給設備を設置する施設の負荷計算
B14: 項目 | C14: 単位 | D14: 値
B15: 建物用途 | D15: =計画資料!D152 -> 0
B16: 延床面積 | C16: m2 | D16: =計画資料!D149 -> 0
B17: 電力負荷 | C17: kWh/年 | D17: =IF(D15=0,0,VLOOKUP($D15,$B$4:$K$9,2,FALSE)*D16) -> 0
B18: 給湯負荷 | C18: MJ/年 | D18: =IF(D15=0,0,VLOOKUP(D15,$B$4:$K$9,4,FALSE)*D16) -> 0
B19: 暖房負荷 | C19: MJ/年 | D19: =IF(D15=0,0,VLOOKUP(D15,$B$4:$K$9,6,FALSE)*D16) -> 0
B20: 冷房負荷 | C20: MJ/年 | D20: =IF(D15=0,0,VLOOKUP(D15,$B$4:$K$9,8,FALSE)*D16) -> 0
B22: ■需要施設の負荷計算 | D22: 設定建物数 | E22: =計画資料!$D$6 -> 0 | F22: 建物
B23: 項目 | C23: 単位 | D23: 建物1 | E23: 建物2 | F23: 建物3 | G23: 建物4 | H23: 建物5 | I23: 建物6 | J23: 建物7 | K23: 建物8 | L23: 建物9 | M23: 建物10 | N23: 合計
B24: 建物用途 | D24: =計画資料!O18 -> 0 | E24: =計画資料!O31 -> 0 | F24: =計画資料!O44 -> 0 | G24: =計画資料!O57 -> 0 | H24: =計画資料!O70 -> 0 | I24: =計画資料!O83 -> 0 | J24: =計画資料!O96 -> 0 | K24: =計画資料!O109 -> 0 | L24: =計画資料!O122 -> 0 | M24: =計画資料!O135 -> 0
B25: 延床面積 | C25: m2 | D25: =IF(計画資料!D6>=1,計画資料!O17,0) -> 0 | E25: =IF(計画資料!D6>=2,計画資料!O30,0) -> 0 | F25: =IF(計画資料!D6>=3,計画資料!O43,0) -> 0 | G25: =IF(計画資料!D6>=4,計画資料!O56,0) -> 0 | H25: =IF(計画資料!D6>=5,計画資料!O69,0) -> 0 | I25: =IF(計画資料!D6>=6,計画資料!O82,0) -> 0 | J25: =IF(計画資料!D6>=7,計画資料!O95,0) -> 0 | K25: =IF(計画資料!D6>=8,計画資料!O108,0) -> 0 | L25: =IF(計画資料!D6>=9,計画資料!O121,0) -> 0 | M25: =IF(計画資料!D6>=10,計画資料!O134,0) -> 0
B26: 電力負荷 | C26: kWh/年 | D26: =IF(D24=0,0,VLOOKUP(D24,$B$4:$K$9,2,FALSE)*D25) -> 0 | E26: 0 | F26: 0 | G26: 0 | H26: 0 | I26: 0 | J26: 0 | K26: 0 | L26: 0 | M26: 0 | N26: =SUM(D26:M26) -> 0
B27: 給湯負荷 | C27: MJ/年 | D27: =IF(D24=0,0,VLOOKUP(D24,$B$4:$K$9,4,FALSE)*D25) -> 0 | E27: 0 | F27: 0 | G27: 0 | H27: 0 | I27: 0 | J27: 0 | K27: 0 | L27: 0 | M27: 0 | N27: =SUM(D27:M27) -> 0
B28: 暖房負荷 | C28: MJ/年 | D28: =IF(D24=0,0,VLOOKUP(D24,$B$4:$K$9,6,FALSE)*D25) -> 0 | E28: 0 | F28: 0 | G28: 0 | H28: 0 | I28: 0 | J28: 0 | K28: 0 | L28: 0 | M28: 0 | N28: =SUM(D28:M28) -> 0
B29: 冷房負荷 | C29: MJ/年 | D29: =IF(D24=0,0,VLOOKUP(D24,$B$4:$K$9,8,FALSE)*D25) -> 0 | E29: 0 | F29: 0 | G29: 0 | H29: 0 | I29: 0 | J29: 0 | K29: 0 | L29: 0 | M29: 0 | N29: =SUM(D29:M29) -> 0

Sheet エネルギー単価 (hidden)
B1: ■EDMCエネルギー経済統計要覧(2015年)より
B3: □電力 | G3: □エネルギー単価表
B4: 電灯電力総合単価（一般電気事業者） | C4: 20.8 | D4: 円/kWh | E4: 2013年 | G4: 項目 | H4: 料金単価 | I4: 単位 | J4: 料金 | K4: 単位 | L4: 使用量 | M4: 単位 | N4: 料金単価(基準）
G5: 電気料金 | H5: =IF(L5=0,N5,J5/L5) -> 20.8 | I5: 円/kWh | J5: =計画資料!D161 -> 0 | K5: 円/年 | L5: =計画資料!F161 -> 0 | M5: kWh/年 | N5: =C4 -> 20.8
B6: □都市ガス | G6: 都市ガス（13A） | H6: =IF(L6=0,N6,J6/L6) -> 114.1333333 | I6: 円/m3 | J6: =IF(計画資料!$C$162=エネルギー単価!G6,計画資料!$D$162,0) -> 0 | K6: 円/年 | L6: =IF(計画資料!$C$162=エネルギー単価!G6,計画資料!$F$162,0) -> 0 | M6: m3/年 | N6: =C10 -> 114.1333333
B7: 都市ガス総合単価（一般ガス事業者） | C7: 10.7 | D7: 円/千kcal | E7: 2013年 | G7: 灯油 | H7: 107.8888889 | I7: 円/L | J7: =IF(計画資料!$C$162=エネルギー単価!G7,計画資料!$D$162,0) -> 0 | K7: 円/年 | L7: =IF(計画資料!$C$162=エネルギー単価!G7,計画資料!$F$162,0) -> 0 | M7: kL/年 | N7: =C14 -> 107.8888889
C8: =C7/4.2 -> 2.547619048 | D8: 円/MJ | G8: 重油 | H8: 58.27761905 | I8: 円/L | J8: =IF(計画資料!$C$162=エネルギー単価!G8,計画資料!$D$162,0) -> 0 | K8: 円/年 | L8: =IF(計画資料!$C$162=エネルギー単価!G8,計画資料!$F$162,0) -> 0 | M8: kL/年 | N8: =C20 -> 58.27761905
B9: 都市ガス発熱量 | C9: 44.8 | D9: MJ/m3 | G9: 液化石油ガス（LPG） | H9: 336.0085325 | I9: 円/m3 | J9: =IF(計画資料!$C$162=エネルギー単価!G9,計画資料!$D$162,0) -> 0 | K9: 円/年 | L9: =IF(計画資料!$C$162=エネルギー単価!G9,計画資料!$F$162,0) -> 0 | M9: t/年 | N9: =C28 -> 336.0085325
B10: 都市ガス単価 | C10: =C8*C9 -> 114.1333333 | D10: 円/m3 | G10: 他人から供給された熱 | H10: 6611.904762 | I10: 円/GJ | J10: =IF(計画資料!$C$162=エネルギー単価!G10,計画資料!$D$162,0) -> 0 | K10: 円/年 | L10: =IF(計画資料!$C$162=エネルギー単価!G10,計画資料!$F$162,0) -> 0 | M10: GJ/年 | N10: =C33 -> 6611.904762
G11: ※燃料種別を選択してください。 | N11: ↑EDMCエネルギー経済統計要覧(2015年)より算出
B12: □灯油
B13: 小口・小売販売単価 | C13: 1942 | D13: 円/18L | E13: 2013年
B14: 灯油単価 | C14: =C13/18 -> 107.8888889 | D14: 円/L
B16: □A重油
B17: 卸売価格 | C17: 6.26 | D17: 円/千kcal | E17: 2013年
C18: =C17/4.2 -> 1.49047619 | D18: 円/MJ
B19: A重油発熱量 | C19: 39.1 | D19: MJ/L
B20: A重油単価 | C20: =C18*C19 -> 58.27761905 | D20: 円/L
B22: □LPG
B23: 卸売価格 | C23: 13.39 | D23: 円/千kcal | E23: 2013年
C24: =C23/4.2 -> 3.188095238 | D24: 円/MJ
B25: LPG発熱量 | C25: 50.8 | D25: MJ/kg
B26: 質量単価 | C26: =C24*C25 -> 161.9552381 | D26: 円/kg
B27: LPG密度 | C27: 2.0747 | D27: kg/m3
B28: 体積単価 | C28: =C26*C27 -> 336.0085325 | D28: 円/m3
B30: □熱供給総合単価
B31: 熱供給総合単価 | C31: 27.77 | D31: 円/千kcal | E31: 2013年
C32: =C31/4.2 -> 6.611904762 | D32: 円/MJ
C33: =C32*1000 -> 6611.904762 | D33: 円/GJ

Sheet 用語の説明 (hidden)
B2: ■用語の説明一覧
B3: 用語 | C3: 説明文
B4: あ | C4: あああああ
B5: い | C5: いいいいい
B6: う | C6: ううううう
